fUST/lending_fUST_20250423
["ID","MTS","AMOUNT","RATE_DAILY","PERIOD"]
[358715477,1745400648943,-500.0,0.00020589,2]
[358715478,1745400648952,-500.0,0.00020589,2]
[358715479,1745400648962,-500.0,0.00020589,2]
[358715480,1745400648971,-500.0,0.00020589,2]
[358715481,1745400648981,-500.0,0.00020589,2]
[358715482,1745400648991,-509.25973869,0.00020589,2]
[358715483,1745400649002,-500.0,0.00020589,2]
[358715484,1745400649012,-500.0,0.00020589,2]
[358715485,1745400649023,-500.0,0.00020589,2]
[358715486,1745400649033,-500.0,0.00020589,2]
[358715487,1745400649042,-500.0,0.00020589,2]
[358715488,1745400649052,-500.0,0.00020589,2]
[358715489,1745400649062,-500.0,0.00020589,2]
[358715490,1745400649071,-235.18299261,0.00020589,2]
[358715491,1745400649081,-500.0,0.00020589,2]
[358715492,1745400649090,-500.0,0.00020589,2]
[358715493,1745400649100,-276.070391,0.00020589,2]
[358715494,1745400649109,-506.24982031,0.00020589,2]
[358715495,1745400649119,-500.0,0.00020589,2]
[358715496,1745400649129,-500.0,0.00020589,2]
[358715497,1745400649139,-500.0,0.00020589,2]
[358715498,1745400649151,-500.0,0.00020589,2]
[358715499,1745400649161,-500.0,0.00020589,2]
[358715500,1745400649171,-500.0,0.00020589,2]
[358715501,1745400649181,-500.0,0.00020589,2]
[358715502,1745400649190,-500.0,0.00020589,2]
[358715503,1745400649200,-500.0,0.00020589,2]
[358715504,1745400649210,-500.0,0.00020589,2]
[358715505,1745400649219,-500.0,0.00020589,2]
[358715506,1745400649228,-500.0,0.00020589,2]
[358715507,1745400649238,-500.0,0.00020589,2]
[358715508,1745400649247,-500.0,0.00020589,2]
[358715509,1745400649256,-519.29,0.00020589,2]
[358715510,1745400649266,-762.57,0.00020589,2]
[358715511,1745400649276,-500.0,0.00020589,2]
[358715512,1745400649297,-500.0,0.00020589,2]
[358715513,1745400649309,-1865.33,0.00020589,2]
[358715514,1745400649321,-589.27,0.00020589,2]
[358715515,1745400649331,-500.0,0.00020589,2]
[358715516,1745400649343,-500.0,0.00020591,2]
[358715517,1745400649352,-500.0,0.00020591,2]
[358715518,1745400649362,-500.0,0.00020591,2]
[358715519,1745400649375,-500.0,0.00020591,2]
[358715520,1745400649384,-500.0,0.00020591,2]
[358715521,1745400649394,-628.11,0.00020591,2]
[358715522,1745400649404,-500.0,0.00020591,2]
[358715523,1745400649414,-500.0,0.00020591,2]
[358715524,1745400649424,-500.0,0.00020591,2]
[358715525,1745400649434,-500.0,0.00020591,2]
[358715526,1745400649444,-500.0,0.00020591,2]
[358715527,1745400649454,-500.0,0.00020591,2]
[358715528,1745400649464,-514.31244637,0.00020591,2]
[358715529,1745400649474,-500.0,0.00020591,2]
[358715530,1745400649485,-500.0,0.00020591,2]
[358715531,1745400649495,-582.21,0.00020591,2]
[358715532,1745400649506,-500.0,0.00020591,2]
[358715533,1745400649516,-500.0,0.00020591,2]
[358715534,1745400649526,-500.0,0.00020591,2]
[358715535,1745400649536,-500.0,0.00020591,2]
[358715536,1745400649546,-500.0,0.00020591,2]
[358715537,1745400649557,-503.5414741,0.00020591,2]
[358715538,1745400649567,-503.16906715,0.00020591,2]
[358715539,1745400649577,-500.0,0.00020591,2]
[358715540,1745400649587,-601.39014281,0.00020591,2]
[358715541,1745400649597,-587.36699915,0.00020591,2]
[358715542,1745400649609,-500.0,0.00020591,2]
[358715543,1745400649619,-500.0,0.00020591,2]
[358715544,1745400649629,-500.0,0.00020591,2]
[358715545,1745400649640,-2377.25552797,0.00020591,2]
[358715546,1745400649649,-385.91685179,0.00020591,2]
[358715547,1745400649659,-505.26810038,0.00020591,2]
[358715548,1745400649670,-500.0,0.00020591,2]
[358715549,1745400649679,-618.9,0.00020591,2]
[358715550,1745400649689,-500.0,0.00020591,2]
[358715551,1745400649700,-500.0,0.00020591,2]
[358715552,1745400649710,-500.0,0.00020591,2]
[358715553,1745400649720,-500.0,0.00020591,2]
[358715554,1745400649731,-500.0,0.00020592,2]
[358715555,1745400649742,-545.01,0.00020592,2]
[358715556,1745400649752,-500.0,0.00020592,2]
[358715557,1745400649763,-500.0,0.00020592,2]
[358715558,1745400649774,-500.0,0.00020592,2]
[358715559,1745400649784,-571.05,0.00020592,2]
[358715560,1745400649794,-500.0,0.00020592,2]
[358715561,1745400649803,-500.0,0.00020592,2]
[358715562,1745400649813,-500.0,0.00020592,2]
[358715563,1745400649823,-186.58195735,0.00020592,2]
[358715564,1745400649833,-500.0,0.00020592,2]
[358715565,1745400649844,-500.0,0.00020592,2]
[358715566,1745400649854,-580.41,0.00020592,2]
[358715567,1745400649864,-500.0,0.00020592,2]
[358715568,1745400649874,-500.0,0.00020592,2]
[358715569,1745400649884,-1043.91,0.00020592,2]
[358715570,1745400649894,-500.0,0.00020592,2]
[358715571,1745400649904,-500.0,0.00020592,2]
[358715572,1745400649914,-500.0,0.00020592,2]
[358715573,1745400649924,-500.0,0.00020592,2]
[358715574,1745400649933,-500.0,0.00020592,2]
[358715575,1745400649944,-500.0,0.00020592,2]
[358715576,1745400649954,-500.0,0.00020592,2]
[358715577,1745400649963,-500.0,0.00020592,2]
[358715578,1745400649973,-500.0,0.00020592,2]
[358715579,1745400649983,-500.0,0.00020592,2]
[358715580,1745400649992,-500.0,0.00020592,2]
[358715581,1745400650002,-307.27186396,0.00020592,2]
[358715582,1745400650011,-500.0,0.00020592,2]
[358715583,1745400650021,-500.0,0.00020592,2]
[358715584,1745400650032,-500.0,0.00020592,2]
[358715585,1745400650042,-500.0,0.00020592,2]
[358715586,1745400650052,-500.0,0.00020592,2]
[358715587,1745400650061,-500.0,0.00020592,2]
[358715588,1745400650071,-500.0,0.00020592,2]
[358715589,1745400650080,-500.0,0.00020592,2]
[358715590,1745400650090,-500.0,0.00020592,2]
[358715591,1745400650100,-471.9581545,0.00020592,2]
[358715592,1745400650110,-500.0,0.00020592,2]
[358715593,1745400650120,-151.0,0.00020592,2]
[358715594,1745400650130,-500.0,0.00020592,2]
[358715595,1745400650140,-500.0,0.00020592,2]
[358715596,1745400650150,-500.0,0.00020592,2]
[358715597,1745400650160,-500.0,0.00020592,2]
[358715598,1745400650170,-500.0,0.00020592,2]
[358715599,1745400650179,-500.0,0.00020592,2]
[358715600,1745400650189,-313.05841,0.00020592,2]
[358715601,1745400650198,-151.0,0.00020592,2]
[358715602,1745400650208,-313.05841,0.00020592,2]
[358715603,1745400650217,-500.0,0.00020592,2]
[358715604,1745400650226,-500.0,0.00020592,2]
[358715605,1745400650236,-500.0,0.00020592,2]
[358715606,1745400650245,-500.0,0.00020592,2]
[358715607,1745400650255,-500.0,0.00020592,2]
[358715608,1745400650264,-500.0,0.00020592,2]
[358715609,1745400650274,-500.0,0.00020592,2]
[358715610,1745400650283,-174.44286268,0.00020592,2]
[358715611,1745400650293,-500.0,0.00020592,2]
[358715612,1745400650306,-548.99,0.00020592,2]
[358715613,1745400650316,-500.0,0.00020592,2]
[358715614,1745400650326,-500.0,0.00020592,2]
[358715615,1745400650335,-500.0,0.00020592,2]
[358715616,1745400650346,-500.0,0.00020592,2]
[358715617,1745400650355,-500.0,0.00020592,2]
[358715618,1745400650365,-500.0,0.00020592,2]
[358715619,1745400650374,-500.0,0.00020592,2]
[358715620,1745400650385,-500.0,0.00020592,2]
[358715621,1745400650395,-237.625624,0.00020592,2]
[358715622,1745400650404,-237.625624,0.00020592,2]
[358715623,1745400650414,-500.0,0.00020592,2]
[358715624,1745400650423,-500.0,0.00020592,2]
[358715625,1745400650432,-500.0,0.00020592,2]
[358715626,1745400650442,-255.245604,0.00020592,2]
[358715627,1745400650452,-500.0,0.00020592,2]
[358715628,1745400650462,-500.0,0.00020592,2]
[358715629,1745400650472,-500.0,0.00020592,2]
[358715630,1745400650481,-500.0,0.00020592,2]
[358715631,1745400650491,-500.0,0.00020592,2]
[358715632,1745400650501,-505.03210272,0.00020592,2]
[358715633,1745400650510,-466.24595911,0.00020592,2]
[358715634,1745400650520,-504.14919942,0.00020592,2]
[358715635,1745400650530,-304.98879107,0.00020592,2]
[358715636,1745400650540,-500.0,0.00020592,2]
[358715637,1745400650549,-500.0,0.00020592,2]
[358715638,1745400650559,-500.0,0.00020592,2]
[358715639,1745400650568,-230.8198938,0.00020592,2]
[358715640,1745400650578,-151.0,0.00020592,2]
[358715641,1745400650588,-500.0,0.00020592,2]
[358715642,1745400650598,-500.0,0.00020592,2]
[358715643,1745400650608,-500.0,0.00020592,2]
[358715644,1745400650618,-500.0,0.00020592,2]
[358715645,1745400650627,-514.89057722,0.00020592,2]
[358715646,1745400650636,-500.0,0.00020592,2]
[358715647,1745400650646,-500.0,0.00020592,2]
[358715648,1745400650655,-500.0,0.00020592,2]
[358715649,1745400650665,-500.0,0.00020592,2]
[358715650,1745400650675,-500.0,0.00020592,2]
[358715651,1745400650684,-500.0,0.00020592,2]
[358715652,1745400650694,-500.0,0.00020592,2]
[358715653,1745400650704,-500.0,0.00020592,2]
[358715654,1745400650713,-527.67,0.00020592,2]
[358715655,1745400650723,-500.0,0.00020592,2]
[358715656,1745400650733,-500.0,0.00020592,2]
[358715657,1745400650742,-500.0,0.00020592,2]
[358715658,1745400650752,-500.0,0.00020592,2]
[358715659,1745400650761,-500.0,0.00020592,2]
[358715660,1745400650771,-723.12,0.00020592,2]
[358715661,1745400650782,-500.0,0.00020592,2]
[358715662,1745400650791,-515.11999243,0.00020592,2]
[358715663,1745400650801,-500.0,0.00020592,2]
[358715664,1745400650810,-500.0,0.00020592,2]
[358715665,1745400650820,-539.69400238,0.00020592,2]
[358715666,1745400650830,-500.0,0.00020592,2]
[358715667,1745400650839,-500.0,0.00020592,2]
[358715668,1745400650849,-500.0,0.00020592,2]
[358715669,1745400650859,-500.0,0.00020592,2]
[358715670,1745400650869,-500.0,0.00020592,2]
[358715671,1745400650878,-500.0,0.00020592,2]
[358715672,1745400650889,-500.0,0.00020592,2]
[358715673,1745400650898,-500.0,0.00020592,2]
[358715674,1745400650908,-500.0,0.00020592,2]
[358715675,1745400650918,-500.0,0.00020592,2]
[358715676,1745400650928,-500.0,0.00020592,2]
[358715677,1745400650937,-277.98340904,0.00020592,2]
[358715678,1745400650947,-500.0,0.00020592,2]
[358715679,1745400650956,-500.0,0.00020592,2]
[358715680,1745400650966,-624.65,0.00020592,2]
[358715681,1745400650976,-510.49376681,0.00020592,2]
[358715682,1745400650986,-500.0,0.00020592,2]
[358715683,1745400650995,-500.0,0.00020592,2]
[358715684,1745400651005,-500.0,0.00020592,2]
[358715685,1745400651015,-500.0,0.00020592,2]
[358715686,1745400651026,-500.0,0.00020592,2]
[358715687,1745400651036,-685.28,0.00020592,2]
[358715688,1745400651046,-500.0,0.00020592,2]
[358715689,1745400651055,-500.0,0.00020592,2]
[358715690,1745400651066,-500.0,0.00020592,2]
[358715691,1745400651077,-151.0,0.00020592,2]
[358715692,1745400651086,-500.0,0.00020593,2]
[358715693,1745400651096,-151.0,0.000206,3]
[358715694,1745400651105,-151.0,0.00020681,2]
[358715695,1745400651115,-197.016999,0.00020689,2]
[358715696,1745400651124,-174.336534,0.00020689,2]
[358715697,1745400651134,-174.336534,0.00020689,2]
[358715698,1745400651143,-500.0,0.0002069,2]
[358715699,1745400651153,-500.0,0.0002069,2]
[358715700,1745400651163,-500.0,0.0002069,2]
[358715701,1745400651173,-642.22924551,0.0002069,2]
[358715702,1745400651182,-500.0,0.0002069,2]
[358715703,1745400651191,-2037.28,0.0002069,2]
[358715704,1745400651200,-519.53435601,0.0002069,2]
[358715705,1745400651211,-500.0,0.0002069,2]
[358715706,1745400651221,-500.0,0.0002069,2]
[358715707,1745400651230,-1934.01,0.0002069,2]
[358715708,1745400651240,-5978.58,0.0002069,2]
[358715709,1745400651249,-7184.07,0.0002069,2]
[358715710,1745400651259,-151.0,0.0002069,2]
[358715711,1745400651269,-151.0,0.0002069,2]
[358715712,1745400651279,-183.406724,0.0002069,2]
[358715713,1745400651289,-151.0,0.0002069,2]
[358715714,1745400651298,-151.0,0.000207,3]
[358715715,1745400651311,-151.0,0.000207,4]
[358715716,1745400651321,-638.0,0.000207,2]
[358715717,1745400651331,-484.67192742,0.00020773,2]
[358715718,1745400651340,-500.0,0.00020773,2]
[358715719,1745400651351,-500.0,0.00020773,2]
[358715720,1745400651360,-500.0,0.00020773,2]
[358715721,1745400651369,-500.0,0.00020773,2]
[358715722,1745400651379,-500.0,0.00020773,2]
[358715723,1745400651388,-500.0,0.00020773,2]
[358715724,1745400651398,-500.0,0.00020773,2]
[358715725,1745400651407,-500.0,0.00020773,2]
[358715726,1745400651418,-500.0,0.00020773,2]
[358715727,1745400651428,-500.0,0.00020773,2]
[358715728,1745400651438,-318.0490392,0.00020773,2]
[358715729,1745400651448,-500.0,0.00020773,2]
[358715730,1745400651460,-500.0,0.00020773,2]
[358715731,1745400651473,-502.26641708,0.00020773,2]
[358715732,1745400651486,-500.0,0.00020773,2]
[358715733,1745400651496,-500.0,0.00020773,2]
[358715734,1745400651507,-500.16551554,0.00020773,2]
[358715735,1745400651517,-500.0,0.00020773,2]
[358715736,1745400651528,-500.0,0.00020773,2]
[358715737,1745400651537,-500.0,0.00020773,2]
[358715738,1745400651548,-500.0,0.00020773,2]
[358715739,1745400651558,-500.0,0.00020773,2]
[358715740,1745400651568,-500.0,0.00020773,2]
[358715741,1745400651578,-500.0,0.00020773,2]
[358715742,1745400651588,-205.18367762,0.00020773,2]
[358715743,1745400651598,-500.0,0.00020773,2]
[358715744,1745400651608,-500.0,0.00020773,2]
[358715745,1745400651618,-500.0,0.00020773,2]
[358715746,1745400651628,-501.91647796,0.00020773,2]
[358715747,1745400651638,-500.0,0.00020773,2]
[358715748,1745400651648,-500.0,0.00020773,2]
[358715749,1745400651658,-398.36479782,0.00020773,2]
[358715750,1745400651667,-500.0,0.00020773,2]
[358715751,1745400651676,-491.14846184,0.00020773,2]
[358715752,1745400651686,-505.84413546,0.00020773,2]
[358715753,1745400651696,-500.0,0.00020773,2]
[358715754,1745400651706,-500.0,0.00020773,2]
[358715755,1745400651716,-500.13208175,0.00020773,2]
[358715756,1745400651726,-500.0,0.00020773,2]
[358715757,1745400651736,-500.0,0.00020773,2]
[358715758,1745400651746,-500.0,0.00020773,2]
[358715759,1745400651756,-500.0,0.00020773,2]
[358715760,1745400651765,-500.80536712,0.00020773,2]
[358715761,1745400651775,-500.0,0.00020773,2]
[358715762,1745400651785,-500.73644953,0.00020773,2]
[358715763,1745400651795,-553.78960758,0.00020773,2]
[358715764,1745400651805,-620.98975835,0.00020773,2]
[358715765,1745400651815,-616.90696445,0.00020773,2]
[358715766,1745400651826,-151.0,0.00020773,2]
[358715767,1745400651836,-151.0,0.00020793,2]
[358715768,1745400651845,-151.0,0.00020795,2]
[358715769,1745400651855,-155.06744045,0.00020795,2]
[358715770,1745400651866,-457249.7324143,0.00020797,2]
[358715771,1745400651875,-151.0,0.00020797,2]
[358715772,1745400651885,-152.064819,0.00020797,2]
[358715773,1745400651895,-171.47209,0.00020797,2]
[358715774,1745400651906,-174.336534,0.00020797,2]
[358715775,1745400651915,-174.336534,0.00020797,2]
[358715776,1745400651925,-313.05841,0.00020797,2]
[358715777,1745400651935,-151.0,0.00020797,2]
[358715778,1745400651945,-313.05841,0.00020797,2]
[358715779,1745400651955,-237.625624,0.00020797,2]
[358715780,1745400651966,-237.625624,0.00020797,2]
[358715781,1745400651975,-255.245604,0.00020797,2]
[358715782,1745400651985,-151.0,0.00020797,2]
[358715783,1745400651996,-248.603842,0.00020797,2]
[358715784,1745400652006,-151.0,0.00020797,2]
[358715785,1745400652016,-151.0,0.00020797,2]
[358715786,1745400652026,-151.0,0.00020797,2]
[358715787,1745400652036,-150.93,0.00020845,2]
[358715788,1745400652046,-403.0,0.00020845,2]
[358715789,1745400652056,-403.0,0.00020845,2]
[358715790,1745400652066,-548.88,0.00020845,2]
[358715791,1745400652075,-706.0,0.00020845,2]
[358715792,1745400652086,-500.0,0.00020859,2]
[358715793,1745400652096,-500.0,0.0002086,2]
[358715794,1745400652245,-500.0,0.0002086,2]
[358715795,1745400652287,-2342.68,0.0002086,2]
[358715796,1745400652302,-217.42912311,0.0002086,2]
[358715797,1745400652312,-500.0,0.0002086,2]
[358715798,1745400652322,-7333.18,0.0002086,2]
[358715799,1745400652332,-500.0,0.0002086,2]
[358715800,1745400652343,-500.0,0.0002086,2]
[358715801,1745400652352,-500.0,0.0002086,2]
[358715802,1745400652362,-3125.36,0.00020861,2]
[358715803,1745400652372,-500.0,0.00020861,2]
[358715804,1745400652383,-500.0,0.00020861,2]
[358715805,1745400652394,-1530.8,0.00020861,2]
[358715806,1745400652403,-504.85503618,0.00020861,2]
[358715807,1745400652413,-9469.11,0.00020861,2]
[358715808,1745400652423,-500.0,0.00020861,2]
[358715809,1745400652432,-500.0,0.00020861,2]
[358715810,1745400652442,-500.0,0.00020861,2]
[358715811,1745400652451,-500.0,0.00020861,2]
[358715812,1745400652461,-4530.67,0.00020861,2]
[358715813,1745400652471,-795.51,0.00020861,2]
[358715814,1745400652480,-500.0,0.00020861,2]
[358715815,1745400652490,-500.0,0.00020861,2]
[358715816,1745400652499,-651.53,0.00020862,2]
[358715817,1745400652509,-500.0,0.00020862,2]
[358715818,1745400652518,-995.49,0.00020862,2]
[358715819,1745400652528,-500.0,0.00020862,2]
[358715820,1745400652537,-1422.43,0.00020862,2]
[358715821,1745400652546,-500.0,0.00020862,2]
[358715822,1745400652556,-540.4,0.00020862,2]
[358715823,1745400652565,-1264.47,0.00020862,2]
[358715824,1745400652575,-500.11,0.00020862,2]
[358715825,1745400652584,-500.0,0.00020862,2]
[358715826,1745400652594,-500.0,0.00020862,2]
[358715827,1745400652605,-500.0,0.00020862,2]
[358715828,1745400652615,-500.0,0.00020862,2]
[358715829,1745400652625,-500.0,0.00020862,2]
[358715830,1745400652635,-536.72,0.00020862,2]
[358715831,1745400652644,-500.0,0.00020862,2]
[358715832,1745400652653,-500.0,0.00020862,2]
[358715833,1745400652663,-500.0,0.00020862,2]
[358715834,1745400652672,-681.92,0.00020862,2]
[358715835,1745400652682,-500.0,0.00020862,2]
[358715836,1745400652691,-500.0,0.00020862,2]
[358715837,1745400652701,-500.0,0.00020862,2]
[358715838,1745400652711,-505.8743485,0.00020862,2]
[358715839,1745400652720,-500.0,0.00020862,2]
[358715840,1745400652730,-500.0,0.00020862,2]
[358715841,1745400652739,-429.16368524,0.00020862,2]
[358715842,1745400652749,-500.0,0.00020862,2]
[358715843,1745400652760,-500.0,0.00020862,2]
[358715844,1745400652769,-500.0,0.00020862,2]
[358715845,1745400652779,-3948.03,0.00020862,2]
[358715846,1745400652789,-500.0,0.00020862,2]
[358715847,1745400652799,-500.0,0.00020862,2]
[358715848,1745400652810,-570.49,0.00020862,2]
[358715849,1745400652820,-500.0,0.00020862,2]
[358715850,1745400652830,-500.0,0.00020862,2]
[358715851,1745400652840,-500.0,0.00020862,2]
[358715852,1745400652850,-500.0,0.00020862,2]
[358715853,1745400652860,-500.0,0.00020863,2]
[358715854,1745400652870,-500.0,0.00020863,2]
[358715855,1745400652880,-500.0,0.00020863,2]
[358715856,1745400652890,-658.54,0.00020863,2]
[358715857,1745400652900,-500.0,0.00020863,2]
[358715858,1745400652910,-645.66,0.00020863,2]
[358715859,1745400652920,-500.0,0.00020863,2]
[358715860,1745400652930,-500.0,0.00020863,2]
[358715861,1745400652939,-500.0,0.00020863,2]
[358715862,1745400652949,-500.0,0.00020863,2]
[358715863,1745400652959,-500.0,0.00020863,2]
[358715864,1745400652969,-500.0,0.00020863,2]
[358715865,1745400652979,-500.0,0.00020863,2]
[358715866,1745400652989,-500.0,0.00020863,2]
[358715867,1745400652999,-500.0,0.00020863,2]
[358715868,1745400653008,-500.0,0.00020863,2]
[358715869,1745400653018,-387.51,0.00020863,2]
[358715870,1745400653028,-154.61281071,0.00020863,2]
[358715871,1745400653038,-500.0,0.00020863,2]
[358715872,1745400653047,-500.0,0.00020863,2]
[358715873,1745400653057,-500.0,0.00020863,2]
[358715874,1745400653067,-500.0,0.00020863,2]
[358715875,1745400653076,-500.0,0.00020863,2]
[358715876,1745400653086,-500.0,0.00020863,2]
[358715877,1745400653096,-500.0,0.00020863,2]
[358715878,1745400653106,-500.0,0.00020863,2]
[358715879,1745400653117,-500.0,0.00020863,2]
[358715880,1745400653126,-500.0,0.00020863,2]
[358715881,1745400653136,-500.0,0.00020863,2]
[358715882,1745400653146,-500.0,0.00020863,2]
[358715883,1745400653155,-500.0,0.00020863,2]
[358715884,1745400653165,-500.0,0.00020863,2]
[358715885,1745400653175,-500.0,0.00020863,2]
[358715886,1745400653185,-500.0,0.00020863,2]
[358715887,1745400653195,-519.29,0.00020863,2]
[358715888,1745400653204,-762.57,0.00020863,2]
[358715889,1745400653214,-500.0,0.00020863,2]
[358715890,1745400653224,-500.0,0.00020863,2]
[358715891,1745400653234,-1865.33,0.00020863,2]
[358715892,1745400653244,-589.27,0.00020863,2]
[358715893,1745400653254,-500.0,0.00020863,2]
[358715894,1745400653264,-500.0,0.00020865,2]
[358715895,1745400653274,-500.0,0.00020865,2]
[358715896,1745400653285,-500.0,0.00020865,2]
[358715897,1745400653295,-500.0,0.00020865,2]
[358715898,1745400653308,-510.10804056,0.00020865,2]
[358715899,1745400653318,-628.11,0.00020865,2]
[358715900,1745400653328,-500.0,0.00020865,2]
[358715901,1745400653338,-500.0,0.00020865,2]
[358715902,1745400653349,-500.0,0.00020865,2]
[358715903,1745400653359,-500.0,0.00020865,2]
[358715904,1745400653369,-500.0,0.00020865,2]
[358715905,1745400653380,-500.0,0.00020865,2]
[358715906,1745400653390,-500.0,0.00020865,2]
[358715907,1745400653399,-500.0,0.00020865,2]
[358715908,1745400653409,-582.21,0.00020865,2]
[358715909,1745400653418,-500.0,0.00020865,2]
[358715910,1745400653428,-500.0,0.00020865,2]
[358715911,1745400653438,-496.3,0.00020865,2]
[358715912,1745400653447,-500.0,0.00020865,2]
[358715913,1745400653457,-500.0,0.00020865,2]
[358715914,1745400653467,-500.0,0.00020865,2]
[358715915,1745400653477,-500.0,0.00020865,2]
[358715916,1745400653487,-500.0,0.00020865,2]
[358715917,1745400653496,-500.0,0.00020865,2]
[358715918,1745400653505,-618.9,0.00020865,2]
[358715919,1745400653516,-348.77570587,0.00020865,2]
[358715920,1745400653526,-500.0,0.00020865,2]
[358715921,1745400653536,-500.0,0.00020865,2]
[358715922,1745400653546,-500.0,0.00020865,2]
[358715923,1745400653556,-500.0,0.00020866,2]
[358715924,1745400653566,-545.01,0.00020866,2]
[358715925,1745400653576,-237.51,0.00020866,2]
[358715926,1745400653585,-500.0,0.00020866,2]
[358715927,1745400653594,-500.0,0.00020866,2]
[358715928,1745400653604,-571.05,0.00020866,2]
[358715929,1745400653613,-500.0,0.00020866,2]
[358715930,1745400653623,-500.0,0.00020866,2]
[358715931,1745400653632,-500.0,0.00020866,2]
[358715932,1745400653642,-500.0,0.00020866,2]
[358715933,1745400653651,-500.0,0.00020866,2]
[358715934,1745400653660,-580.41,0.00020866,2]
[358715935,1745400653669,-500.0,0.00020866,2]
[358715936,1745400653679,-500.0,0.00020866,2]
[358715937,1745400653688,-1043.91,0.00020866,2]
[358715938,1745400653697,-500.0,0.00020866,2]
[358715939,1745400653707,-500.0,0.00020866,2]
[358715940,1745400653716,-500.0,0.00020866,2]
[358715941,1745400653725,-500.0,0.00020866,2]
[358715942,1745400653735,-500.0,0.00020866,2]
[358715943,1745400653744,-500.0,0.00020866,2]
[358715944,1745400653753,-500.0,0.00020866,2]
[358715945,1745400653763,-500.0,0.00020866,2]
[358715946,1745400653773,-500.0,0.00020866,2]
[358715947,1745400653783,-500.0,0.00020866,2]
[358715948,1745400653792,-500.0,0.00020866,2]
[358715949,1745400653802,-500.0,0.00020866,2]
[358715950,1745400653811,-500.0,0.00020866,2]
[358715951,1745400653821,-500.0,0.00020866,2]
[358715952,1745400653830,-500.0,0.00020866,2]
[358715953,1745400653840,-584.55378095,0.00020866,2]
[358715954,1745400653850,-500.0,0.00020866,2]
[358715955,1745400653859,-500.0,0.00020866,2]
[358715956,1745400653869,-500.0,0.00020866,2]
[358715957,1745400653879,-500.0,0.00020866,2]
[358715958,1745400653888,-500.0,0.00020866,2]
[358715959,1745400653898,-500.0,0.00020866,2]
[358715960,1745400653908,-500.0,0.00020866,2]
[358715961,1745400653917,-500.0,0.00020866,2]
[358715962,1745400653927,-500.0,0.00020866,2]
[358715963,1745400653937,-500.0,0.00020866,2]
[358715964,1745400653947,-500.0,0.00020866,2]
[358715965,1745400653957,-500.0,0.00020866,2]
[358715966,1745400653967,-500.0,0.00020866,2]
[358715967,1745400653977,-500.0,0.00020866,2]
[358715968,1745400653988,-191.6665111,0.00020866,2]
[358715969,1745400653997,-500.0,0.00020866,2]
[358715970,1745400654007,-500.0,0.00020866,2]
[358715971,1745400654017,-500.0,0.00020866,2]
[358715972,1745400654026,-500.0,0.00020866,2]
[358715973,1745400654036,-548.99,0.00020866,2]
[358715974,1745400654046,-318.87025662,0.00020866,2]
[358715975,1745400654056,-500.0,0.00020866,2]
[358715976,1745400654066,-500.0,0.00020866,2]